bitfinex-derivatives/quotes_SOLF0:USTF0_20250830
["timestamp","ask_amount","ask_price","bid_price","bid_amount"]
[1756517358777,5.44917053,203.73,203.63,7.78]
[1756517358978,10.61861567,203.72,203.63,7.78]
[1756517359177,7.17,203.7,203.63,7.78]
[1756517359473,3.44861567,203.69,203.63,7.78]
[1756517359778,3.44861567,203.69,203.64,0.03760978]
[1756517360076,3.44878219,203.68,203.65,7.78]
[1756517360276,7.17,203.74,203.65,7.78]
[1756517360578,7.17,203.72,203.65,7.78]
[1756517360872,3.44973302,203.71,203.67,0.036075]
[1756517361077,7.17,203.69,203.67,0.036075]
[1756517361378,10.61973302,203.68,203.67,0.036075]
[1756517367375,10.62283922,203.68,203.67,0.036075]
[1756517378387,3.45283922,203.68,203.67,0.036075]
[1756517378588,11.11283922,203.68,203.67,0.036075]
[1756517379685,7.66,203.68,203.67,0.036075]
[1756517380083,11.11655127,203.68,203.67,0.036075]
[1756517382187,11.11630149,203.68,203.67,0.036075]
[1756517382689,15.53430149,203.68,203.67,0.036075]
[1756517383189,7.87430149,203.68,203.67,0.036075]
[1756517383389,15.53430149,203.68,203.67,0.036075]
[1756517385387,3.45630149,203.68,203.67,0.036075]
[1756517387493,11.11630149,203.68,203.67,0.036075]
[1756517387989,4.4171,203.72,203.67,10.36107855]
[1756517388193,3.45571363,203.71,203.67,2.90107855]
[1756517388393,7.66,203.75,203.68,7.46]
[1756517388894,7.66,203.75,203.7,2.86500355]
[1756517389095,68.6869,203.79,203.7,10.32500355]
[1756517389793,7.66,203.78,203.72,0.0338252]
[1756517394699,7.66,203.73,203.72,0.0338252]
[1756517394900,135.40500355,203.74,203.63,10.32500355]
[1756517395897,7.66,203.73,203.63,10.32500355]
[1756517396098,7.66,203.7,203.63,10.32500355]
[1756517398403,7.66,203.7,203.63,7.46]
[1756517401907,7.66,203.7,203.54,84.94149142]
[1756517401908,10.52500355,203.7,203.59,2.86500355]
[1756517402301,7.66,203.7,203.59,2.86500355]
[1756517402605,137.98917053,203.74,203.6,10.32500355]
[1756517402606,7.69640464,203.67,203.6,10.32500355]
[1756517403104,7.66,203.67,203.6,10.32500355]
[1756517403307,0.03292765,203.66,203.6,10.32500355]
[1756517403803,0.03292765,203.66,203.6,7.46]
[1756517404000,7.66,203.65,203.55,10.32500355]
[1756517404402,7.66,203.65,203.56,7.46]
[1756517404702,7.66,203.65,203.56,10.32500355]
[1756517405001,0.03434332,203.63,203.56,10.32500355]
[1756517405210,7.66,203.62,203.56,10.32500355]
[1756517405600,7.66,203.62,203.52,10.32500355]
[1756517406005,7.66,203.62,203.52,7.46]
[1756517406202,0.0328227,203.59,203.52,7.46]
[1756517406403,7.6928227,203.59,203.52,7.46]
[1756517414512,7.6928227,203.59,203.47,2.86500355]
[1756517414816,7.66,203.59,203.48,7.58]
[1756517415206,7.82,203.54,203.4,8.43515242]
[1756517415410,7.82,203.54,203.38,5.50346299]
[1756517415411,7.82,203.54,203.44,2.86500355]
[1756517415612,7.82,203.54,203.45,7.58]
[1756517415914,0.0346307,203.51,203.45,7.58]
[1756517422119,0.0346307,203.51,203.37,0.85534158]
[1756517422417,7.8,203.5,203.4,2.86500355]
[1756517422816,0.03630773,203.46,203.4,2.86500355]
[1756517423116,0.03630773,203.46,203.42,7.58]
[1756517423421,7.8,203.5,203.42,7.58]
[1756517423815,0.03334352,203.46,203.42,7.58]
[1756517424019,0.03334352,203.46,203.44,2.86500355]
[1756517424222,0.03334352,203.46,203.45,7.58]
[1756517426019,0.03334352,203.46,203.45,8.08]
[1756517426423,7.8,203.54,203.45,8.08]
[1756517426622,7.8,203.54,203.47,2.86500355]
[1756517426823,7.8,203.54,203.47,10.44500355]
[1756517427725,7.8,203.54,203.48,0.03777908]
[1756517434135,7.8,203.51,203.48,0.03777908]
[1756517434332,2.86500355,203.52,203.48,0.03777908]
[1756517434535,7.8,203.51,203.48,0.03777908]
[1756517435124,2.86500355,203.5,203.48,0.03777908]
[1756517435422,7.8,203.49,203.48,0.03777908]
[1756517438334,7.74,203.53,203.48,0.03777908]
[1756517438532,2.86500355,203.54,203.48,0.03777908]
[1756517438733,2.86500355,203.58,203.48,0.03777908]
[1756517438925,7.74,203.54,203.48,0.03777908]
[1756517439535,7.74,203.54,203.48,7.68777908]
[1756517442638,7.74,203.58,203.48,7.68777908]
[1756517444937,7.74,203.58,203.48,10.55278263]
[1756517445541,7.74,203.58,203.51,2.86500355]
[1756517446241,7.74,203.58,203.52,0.03449611]
[1756517448239,7.74,203.62,203.53,7.65]
[1756517448646,7.74,203.65,203.55,7.65]
[1756517449346,7.74,203.65,203.58,0.03299701]
[1756517450044,7.74,203.65,203.59,7.65]
[1756517450542,7.74,203.68,203.59,7.65]
[1756517450950,7.74,203.68,203.6,2.86500355]
[1756517451246,7.74,203.68,203.61,7.65]
[1756517451649,7.74,203.72,203.61,7.65]
[1756517452145,7.74,203.7,203.62,0.03323526]
[1756517453749,7.74,203.66,203.62,0.03323526]
[1756517454546,2.86500355,203.67,203.62,0.03323526]
[1756517455050,7.74,203.66,203.62,0.03323526]
[1756517455249,2.86500355,203.67,203.62,0.03323526]
[1756517455744,7.74,203.66,203.62,0.03323526]
[1756517455950,2.86500355,203.67,203.62,0.03323526]
[1756517456250,134.84376644,203.74,203.62,0.03323526]
[1756517456450,7.74,203.68,203.62,0.03323526]
[1756517457551,7.74,203.68,203.62,10.54823881]
[1756517458147,7.74,203.67,203.62,0.03323526]
[1756517460246,7.74,203.73,203.64,7.65]
[1756517460655,7.74,203.73,203.66,2.86500355]
[1756517460955,7.74,203.73,203.67,7.65]
[1756517461250,7.74,203.73,203.67,7.68120974]
[1756517462449,7.74,203.73,203.67,0.03120974]
[1756517464152,64.76480701,203.76,203.67,0.03120974]
[1756517464857,64.76480701,203.76,203.69,2.86500355]
[1756517466457,7.74,203.75,203.67,0.03120974]
[1756517467951,7.74,203.75,203.68,2.86500355]
[1756517468151,7.74,203.75,203.69,7.41]
[1756517472557,7.74,203.75,203.67,0.03120974]
[1756517472756,10.60500355,203.75,203.67,0.03120974]
[1756517473060,11.45946307,203.75,203.67,0.03120974]
[1756517473462,127.34,203.74,203.67,0.03120974]
[1756517473660,8.59445952,203.75,203.67,0.03120974]
[1756517473859,127.34,203.74,203.67,0.03120974]
[1756517474058,7.34,203.73,203.67,0.03120974]
[1756517475654,0.85445952,203.75,203.67,0.03120974]
[1756517475860,27.24585265,204.13,203.67,0.03120974]
[1756517475861,7.34,203.85,203.75,7.41]
[1756517476054,7.34,203.91,203.84,2.86500355]
[1756517476461,7.34,203.95,203.88,2.86500355]
[1756517476661,7.34,203.95,203.92,2.86500355]
[1756517477060,8.19352693,204.0,203.92,2.86500355]
[1756517477261,8.19352693,204.0,203.91,4.60552981]
[1756517477561,7.34,203.99,203.88,7.41]
[1756517477769,7.34,203.99,203.93,0.03754612]
[1756517478671,135.2,203.99,203.93,0.03754612]
[1756517481168,134.96,203.99,203.93,0.03754612]
[1756517482972,7.34,203.95,203.8,7.41]
[1756517483171,4.56921167,203.96,203.8,11.97921167]
[1756517483371,7.34,203.95,203.8,11.97921167]
[1756517483566,7.34,203.95,203.81,7.41]
[1756517483768,7.38,203.94,203.86,4.56921167]
[1756517484169,0.03390901,203.92,203.84,7.41]
[1756517484871,15.64,203.91,203.84,7.41]
[1756517485664,0.03390901,203.92,203.84,7.41]
[1756517485871,61.09390901,203.92,203.84,7.41]
[1756517486071,61.09390901,203.92,203.8,7.41]
[1756517486272,11.90921167,203.91,203.8,7.41]
[1756517486875,0.03379287,203.88,203.8,7.41]
[1756517487673,7.34,203.87,203.8,7.41]
[1756517487867,7.34,203.87,203.75,7.41]
[1756517488577,0.03361032,203.83,203.75,7.41]
[1756517490577,11.90921167,203.82,203.71,7.41]
[1756517491174,0.0363768,203.79,203.71,7.41]
[1756517494185,0.0363768,203.79,203.58,7.41]
[1756517494481,4.56921167,203.77,203.63,7.41]
[1756517494884,0.03556229,203.71,203.63,7.41]
[1756517496079,0.03556229,203.71,203.65,7.41]
[1756517498985,0.03556229,203.71,203.58,7.64]
[1756517498986,39.79556229,203.71,203.58,7.64]
[1756517499281,39.76,203.71,203.58,7.64]
[1756517499687,0.03755232,203.67,203.58,7.64]
[1756517501586,12.30921167,203.66,203.49,7.64]
[1756517501880,51.22921167,203.66,203.49,7.64]
[1756517502286,0.03717352,203.6,203.49,7.64]
[1756517508200,7.74,203.59,203.49,7.64]
[1756517509496,14.18,203.58,203.49,7.64]
[1756517509693,7.74,203.57,203.49,7.64]
[1756517510094,0.03437649,203.55,203.49,7.64]
[1756517510798,0.03437649,203.55,203.37,329.86]
[1756517510799,7.74,203.54,203.44,7.64]
[1756517515792,0.03437649,203.55,203.44,7.64]
[1756517521997,0.03437649,203.55,203.47,7.64]
[1756517522403,7.74,203.58,203.47,7.64]
[1756517522604,0.03235919,203.53,203.47,7.64]
[1756517524401,7.74,203.52,203.38,7.64]
[1756517524607,2.76,203.51,203.38,7.64]
[1756517524995,7.74,203.5,203.38,7.64]
[1756517525299,2.87199066,203.45,203.38,7.64]
[1756517526102,7.74,203.44,203.26,26.54]
[1756517526302,7.74,203.44,203.32,2.87199066]
[1756517526503,2.87199066,203.42,203.33,7.64]
[1756517526902,0.03745885,203.4,203.33,7.64]
[1756517527107,0.03745885,203.4,203.33,10.51199066]
[1756517527407,0.03745885,203.4,203.34,7.96]
[1756517530209,0.03745885,203.4,203.37,7.96]
[1756517530508,7.21,203.48,203.37,7.96]
[1756517531007,0.03441634,203.41,203.37,7.96]
[1756517531202,7.21,203.52,203.4,0.03752922]
[1756517531401,7.21,203.52,203.41,7.96]
[1756517534212,4.59457213,203.44,203.3,7.96]
[1756517534412,11.80457213,203.44,203.3,7.96]
[1756517537105,7.21,203.44,203.32,4.59457213]
[1756517537306,7.21,203.44,203.33,7.96]
[1756517549327,10.08224064,203.44,203.33,10.83224064]
[1756517549631,10.08224064,203.44,203.34,7.96]
[1756517552824,7.21,203.4,203.24,330.2]
[1756517553126,7.21,203.4,203.3,7.96]
[1756517553432,2.87224064,203.38,203.3,7.96]
[1756517553630,7.21,203.37,203.3,7.96]
[1756517559735,7.83,203.34,203.27,7.23]
[1756517561230,7.83,203.37,203.29,7.23]
[1756517562436,7.83,203.34,203.28,0.0315044]
[1756517562933,7.83,203.31,203.28,0.0315044]
[1756517563437,77.25224064,203.32,203.28,0.0315044]
[1756517563627,7.83,203.31,203.28,0.0315044]
[1756517564027,2.87224064,203.32,203.28,0.0315044]
[1756517564233,7.83,203.31,203.28,0.0315044]
[1756517564433,2.87224064,203.32,203.28,0.0315044]
[1756517564636,7.83,203.31,203.28,0.0315044]
[1756517564934,2.87224064,203.32,203.28,0.0315044]
[1756517565130,7.83,203.31,203.28,0.0315044]
[1756517565331,7.83,203.32,203.28,0.0315044]
[1756517566240,2.87224064,203.33,203.28,0.0315044]
[1756517566441,7.83,203.32,203.28,0.0315044]
[1756517566829,2.87224064,203.33,203.28,0.0315044]
[1756517567033,7.83,203.32,203.28,0.0315044]
[1756517567339,2.87224064,203.33,203.28,0.0315044]
[1756517567836,7.83,203.32,203.28,0.0315044]
[1756517568034,7.83,203.32,203.28,7.2615044]
[1756517568339,2.87224064,203.33,203.28,7.2615044]
[1756517568539,7.83,203.32,203.28,7.2615044]
[1756517568835,7.83,203.32,203.28,0.0315044]
[1756517569039,2.87224064,203.33,203.28,0.0315044]
[1756517569436,7.83,203.32,203.28,0.0315044]
[1756517569638,2.87224064,203.33,203.28,0.0315044]
[1756517570036,7.83,203.32,203.28,0.0315044]
[1756517570434,2.87224064,203.33,203.28,0.0315044]
[1756517571133,7.83,203.32,203.28,0.0315044]
[1756517571941,7.83,203.36,203.29,7.23]
[1756517572641,7.83,203.36,203.3,0.03334734]
[1756517574434,130.01224064,203.38,203.31,7.23]
[1756517574634,127.14,203.38,203.31,7.23]
[1756517575636,7.83,203.4,203.31,7.23]
[1756517575839,10.70224064,203.44,203.34,7.23]
[1756517576336,7.83,203.44,203.36,2.87224064]
[1756517576646,2.87224064,203.47,203.38,7.23]
[1756517580839,7.83,203.48,203.38,7.23]
[1756517581045,7.83,203.52,203.42,2.87224064]
[1756517581355,72.74,203.51,203.43,7.23]
[1756517581939,7.83,203.52,203.43,7.23]
[1756517582138,7.83,203.52,203.45,2.87224064]
[1756517582343,7.83,203.52,203.46,7.23]
[1756517582534,7.83,203.57,203.49,7.23]
[1756517582738,134.87,203.57,203.49,7.23]
[1756517583541,134.87,203.57,203.51,0.03290843]
[1756517583738,7.83,203.57,203.51,0.03290843]
[1756517584145,330.52,203.58,203.52,7.23]
[1756517584342,77.64756703,203.6,203.55,7.23]
[1756517584546,7.83,203.59,203.55,7.23]
[1756517585247,69.81756703,203.6,203.54,2.87224064]
[1756517585442,77.64756703,203.6,203.55,7.26214393]
[1756517585747,7.83,203.59,203.55,0.03214393]
[1756517586345,69.81756703,203.6,203.55,0.03214393]
[1756517586548,7.83,203.59,203.55,0.03214393]
[1756517588250,7.83,203.59,203.55,7.24214393]
[1756517588452,77.33756703,203.6,203.55,7.24214393]
[1756517588954,124.98,203.62,203.56,7.21]
[1756517589149,7.52,203.68,203.58,2.87224064]
[1756517589356,10.39224064,203.68,203.59,7.21]
[1756517590151,10.39224064,203.68,203.61,0.03350038]
[1756517591148,7.52,203.68,203.61,0.03350038]
[1756517591348,7.52,203.68,203.61,2.90574102]
[1756517591958,7.52,203.74,203.62,7.21]
[1756517592151,7.52,203.74,203.66,2.87224064]
[1756517592351,7.92,203.77,203.69,2.87224064]
[1756517593747,7.52,203.76,203.68,0.03313395]
[1756517593953,7.52,203.76,203.68,2.90537459]
[1756517595353,10.39224064,203.76,203.68,0.03313395]
[1756517596048,2.87224064,203.73,203.68,0.03313395]
[1756517596858,7.52,203.72,203.68,0.03313395]
[1756517597060,2.87224064,203.73,203.68,0.03313395]
[1756517597855,51.08,203.72,203.68,0.03313395]
[1756517598255,7.52,203.71,203.68,0.03313395]
[1756517598655,51.08,203.72,203.68,0.03313395]
[1756517598954,7.52,203.71,203.68,0.03313395]
[1756517599157,2.87224064,203.73,203.68,0.03313395]
[1756517599357,63.35224064,203.73,203.68,0.03313395]
[1756517599955,7.52,203.72,203.68,0.03313395]
[1756517600657,63.35224064,203.73,203.68,0.03313395]
[1756517600857,14.74,203.86,203.68,0.03313395]
[1756517600858,2.87224064,203.79,203.69,7.21]
[1756517601054,7.52,203.78,203.69,7.21]
[1756517601458,7.52,203.78,203.71,0.03442487]
[1756517605562,134.24,203.78,203.71,0.03442487]
[1756517607768,7.52,203.75,203.71,0.03442487]
[1756517608069,2.87224064,203.73,203.71,0.03442487]
[1756517608259,7.52,203.72,203.71,0.03442487]
[1756517608463,7.52,203.72,203.62,2.87224064]
[1756517608666,7.52,203.72,203.63,7.21]
[1756517609063,126.7,203.73,203.65,2.87224064]
[1756517609260,123.1,203.73,203.66,7.21]
[1756517609661,0.03216776,203.72,203.66,7.21]
[1756517610268,7.55216776,203.72,203.66,7.21]
[1756517611969,0.03216776,203.72,203.66,10.08224064]
[1756517613467,0.03216776,203.72,203.66,7.21]
[1756517617672,0.03216776,203.72,203.68,2.87224064]
[1756517618176,0.03216776,203.72,203.69,7.91]
[1756517618371,0.03216776,203.72,203.68,2.87224064]
[1756517618984,0.03216776,203.72,203.69,7.91]
[1756517619772,0.03216776,203.72,203.68,2.87224064]
[1756517620071,0.03216776,203.72,203.69,7.91]
[1756517620569,0.03216776,203.72,203.71,2.87224064]
[1756517620769,0.03216776,203.72,203.71,10.78224064]
[1756517621566,57.25,203.81,203.71,3.37224064]
[1756517621868,107.26,203.84,203.75,7.91]
[1756517625577,107.26,203.84,203.77,0.03133915]
[1756517626074,7.43,203.85,203.77,0.03133915]
[1756517626280,126.54,203.84,203.77,0.03133915]
[1756517627380,126.54,203.84,203.78,7.91]
[1756517628778,126.54,203.84,203.77,2.90357979]
[1756517631180,7.43,203.85,203.77,2.90357979]
[1756517631375,7.43,203.85,203.8,2.87224064]
[1756517631579,7.43,203.85,203.81,7.91]
[1756517631775,330.3,203.87,203.81,7.91]
[1756517633385,133.89,203.89,203.81,7.91]
[1756517633879,5.44917053,203.93,203.83,2.90384253]
[1756517634085,7.43,203.95,203.89,10.78224064]
[1756517634584,7.43,203.95,203.86,2.87224064]
[1756517634981,7.43,203.95,203.83,2.87224064]
[1756517635181,7.43,203.92,203.81,7.91]
[1756517635380,7.43,203.9,203.87,0.03188872]
[1756517635582,10.30224064,203.9,203.87,0.03188872]
[1756517635788,10.80224064,203.9,203.77,2.87224064]
[1756517635987,10.30224064,203.9,203.77,2.87224064]
[1756517637286,7.46534554,203.86,203.76,7.91]
[1756517637481,133.88534554,203.86,203.76,7.91]
[1756517640785,7.46534554,203.86,203.76,7.91]
[1756517640986,0.03534554,203.86,203.78,7.91]
[1756517641390,7.43,203.87,203.78,7.91]
[1756517641595,0.03437707,203.84,203.78,7.91]
[1756517642393,0.03437707,203.84,203.81,4.57635717]
[1756517642798,0.03437707,203.84,203.83,7.91]
[1756517643000,7.43,203.98,203.83,7.91]
[1756517643194,7.43,203.98,203.87,7.91]
[1756517643195,126.36,203.97,203.87,7.91]
[1756517643401,7.43,203.96,203.87,7.91]
[1756517643597,7.43,203.96,203.76,4.57635717]
[1756517643598,12.00635717,203.96,203.76,13.66]
[1756517643798,7.43,203.95,203.8,7.91]
[1756517644296,7.43,203.95,203.81,7.91]
[1756517644498,7.43,203.95,203.85,0.03160609]
[1756517647000,126.32,203.94,203.85,7.78160609]
[1756517648704,7.78,203.93,203.85,0.03160609]
[1756517654299,68.12,203.93,203.85,0.03160609]
[1756517660609,2.85851542,203.91,203.85,0.03160609]
[1756517661006,7.78,203.9,203.85,0.03160609]
[1756517661206,2.85851542,203.91,203.85,0.03160609]
[1756517662009,7.78,203.9,203.85,0.03160609]
[1756517662207,2.85851542,203.91,203.85,0.03160609]
[1756517662407,7.78,203.9,203.85,0.03160609]
[1756517662606,2.85851542,203.91,203.85,0.03160609]
[1756517662808,7.78,203.9,203.85,0.03160609]
[1756517663208,2.85851542,203.91,203.85,0.03160609]
[1756517663403,7.78,203.9,203.85,0.03160609]
[1756517663609,2.85851542,203.91,203.85,0.03160609]
[1756517663810,7.78,203.9,203.85,0.03160609]
[1756517664008,2.85851542,203.91,203.85,0.03160609]
[1756517664307,7.78,203.92,203.85,0.03160609]
[1756517664512,10.63851542,203.92,203.85,0.03160609]
[1756517668612,2.85851542,203.89,203.85,0.03160609]
[1756517668818,7.78,203.88,203.85,0.03160609]
[1756517669020,2.85851542,203.89,203.85,0.03160609]
[1756517669618,7.78,203.88,203.85,0.03160609]
[1756517669923,2.85851542,203.89,203.85,0.03160609]
[1756517670314,7.78,203.88,203.85,0.03160609]
[1756517670715,2.85851542,203.89,203.85,0.03160609]
[1756517671312,7.78,203.92,203.85,0.03160609]
[1756517671620,10.63851542,203.92,203.85,0.03160609]
[1756517673718,7.78,203.92,203.85,0.03160609]
[1756517673925,7.78,203.92,203.86,7.75]
[1756517675822,7.78,203.92,203.86,10.60851542]
[1756517676823,7.78,203.95,203.86,10.60851542]
[1756517677519,337.44,203.99,203.89,2.85851542]
[1756517677719,337.44,203.99,203.9,7.83]
[1756517678319,337.44,203.99,203.92,2.85851542]
[1756517678521,337.44,203.99,203.93,7.83]
[1756517680321,337.44,203.99,203.95,7.83]
[1756517680528,7.58,203.99,203.96,7.83]
[1756517680722,0.03196066,203.99,203.96,7.83]
[1756517681424,7.58,203.98,203.95,2.85851542]
[1756517681628,7.58,203.98,203.95,10.68851542]
[1756517684031,7.58,203.98,203.95,7.83]
[1756517684227,0.03196066,203.99,203.94,0.03505214]
[1756517684428,0.03196066,203.99,203.95,7.83]
[1756517684731,0.03196066,203.99,203.94,0.03505214]
[1756517685127,0.03196066,203.99,203.95,7.83]
[1756517685333,0.03196066,203.99,203.94,0.03505214]
[1756517685633,0.03196066,203.99,203.95,7.83]
[1756517686025,0.03196066,203.99,203.94,0.03505214]
[1756517686533,0.03196066,203.99,203.98,7.83]
[1756517689030,7.58,204.06,203.98,7.83]
[1756517689230,7.58,204.06,204.0,2.85851542]
[1756517689434,7.58,204.06,204.0,10.68851542]
[1756517690335,7.58,204.08,204.01,0.03434199]
[1756517692836,7.58,204.08,204.01,2.89285741]
[1756517696035,7.58,204.08,204.01,0.03434199]
[1756517696334,7.58,204.05,204.01,0.03434199]
[1756517700137,7.58,204.02,203.91,7.83]
[1756517700339,125.78,204.01,203.92,2.85851542]
[1756517700533,125.78,204.01,203.93,7.83]
[1756517700739,7.58,204.0,203.91,2.85851542]
[1756517701040,7.58,204.0,203.9,7.83]
[1756517701234,7.58,204.0,203.9,10.68851542]
[1756517701433,7.58,204.0,203.93,0.03147699]
[1756517702241,125.76,203.99,203.93,0.03147699]
[1756517702537,7.58,204.0,203.93,2.88999241]
[1756517702733,125.76,204.01,203.94,7.83]
[1756517705737,0.03374991,204.0,203.94,7.83]
[1756517707647,7.59,203.99,203.93,0.03147699]
[1756517710045,2.85851542,203.97,203.93,0.03147699]
[1756517710240,7.59,203.96,203.93,0.03147699]
[1756517710647,2.85851542,203.97,203.93,0.03147699]
[1756517710955,10.44851542,203.99,203.93,0.03147699]
[1756517712146,0.03374991,204.0,203.94,7.21]
[1756517712346,0.03374991,204.0,203.95,2.85851542]
[1756517713150,0.03374991,204.0,203.99,7.21]
[1756517714455,2.85851542,204.1,203.99,7.21]
[1756517714456,7.59,204.1,203.99,7.71]
[1756517714753,7.59,204.1,204.02,7.21]
[1756517715654,10.44851542,204.1,203.98,10.06851542]
[1756517715854,10.44851542,204.1,204.04,0.03211585]
[1756517717345,7.59,204.1,204.04,0.03211585]
[1756517721663,2.85851542,204.07,204.04,0.03211585]
[1756517721850,133.15,204.06,203.95,2.85851542]
[1756517722051,7.59,204.03,203.93,7.21]
[1756517722861,7.59,204.03,203.93,10.06851542]
[1756517723160,7.59,204.03,203.96,0.03426428]
[1756517723856,7.59,204.03,203.96,10.1027797]
[1756517726258,7.59,204.03,203.96,7.24426428]
[1756517727357,7.59,204.03,203.96,10.1027797]
[1756517727960,7.59,204.1,204.0,7.21]
[1756517728257,7.59,204.1,204.02,2.85851542]
[1756517728461,7.59,204.1,204.03,7.21]
[1756517728760,7.59,204.1,204.03,7.24347727]
[1756517729150,125.5,204.13,204.04,2.85851542]
[1756517730455,125.5,204.13,204.03,7.24347727]
[1756517730760,125.5,204.13,204.04,2.85851542]
[1756517731763,7.59,204.14,204.04,2.85851542]
[1756517732260,7.59,204.14,204.05,7.21]
[1756517732461,7.59,204.14,204.07,2.85851542]
[1756517732962,7.59,204.14,204.08,0.03413481]
[1756517741972,7.59,204.14,204.08,7.62413481]
[1756517743169,7.59,204.14,204.08,10.48265023]
[1756517743370,7.64,204.18,204.08,10.48265023]
[1756517743566,125.36,204.17,204.11,2.85851542]
[1756517744170,125.36,204.17,204.12,0.03442992]
[1756517745771,7.64,204.16,204.12,0.03442992]
[1756517745968,125.36,204.17,204.12,0.03442992]
[1756517746171,7.64,204.16,204.12,0.03442992]
[1756517746965,125.36,204.17,204.12,0.03442992]
[1756517748266,7.64,204.16,204.12,7.62442992]
[1756517748674,125.36,204.17,204.12,0.03442992]
[1756517749074,7.64,204.16,204.12,0.03442992]
[1756517750171,125.36,204.17,204.12,0.03442992]
[1756517750570,133.0,204.17,204.13,7.59]
[1756517751976,7.64,204.16,204.13,7.59]
[1756517754076,125.36,204.17,204.13,7.59]
[1756517754276,133.0,204.17,204.13,7.59]
[1756517755683,125.36,204.17,204.13,7.59]
[1756517755978,125.36,204.17,204.12,0.03442992]
[1756517756277,7.64,204.16,204.12,0.03442992]
[1756517756679,7.64,204.16,204.13,7.59]
[1756517756877,7.64,204.17,204.13,7.59]
[1756517757274,125.22,204.18,204.13,7.59]
[1756517757680,7.64,204.17,204.13,7.59]
[1756517757880,125.22,204.18,204.13,7.59]
[1756517758587,7.64,204.21,204.14,2.85851542]
[1756517758887,125.2,204.2,204.14,2.85851542]
[1756517759383,132.82,204.21,204.15,7.59]
[1756517760784,132.82,204.21,204.14,2.85851542]
[1756517761484,132.82,204.21,204.12,2.89294534]
[1756517762581,2.85851542,204.2,204.12,0.03442992]
[1756517762780,7.64,204.19,204.12,0.03442992]
[1756517771197,2.85851542,204.17,204.12,0.03442992]
[1756517771495,132.79,204.16,204.12,0.03442992]
[1756517771991,2.85851542,204.14,203.97,334.80346299]
[1756517772187,7.7,204.13,204.01,10.54851542]
[1756517772393,2.85851542,204.11,204.01,7.69]
[1756517772690,7.7,204.09,203.93,5.50346299]
[1756517772888,7.7,204.09,203.98,2.85851542]
[1756517773093,7.7,204.07,203.98,2.85851542]
[1756517773283,0.03558666,204.06,203.98,2.85851542]
[1756517775092,0.03558666,204.06,203.97,7.69]
[1756517775292,0.03558666,204.06,203.97,10.54851542]
[1756517775793,0.03558666,204.06,203.97,7.69]
[1756517775794,7.7,204.05,203.97,7.69]
[1756517775987,0.03558666,204.06,203.86,13.19346299]
[1756517775988,2.85851542,203.99,203.86,13.19346299]
[1756517776188,7.7,203.95,203.83,2.85851542]
[1756517776393,10.55851542,203.92,203.82,7.69]
[1756517776591,22.59170172,203.91,203.82,7.69]
[1756517776797,7.7,203.9,203.82,7.69]
[1756517779794,7.7,203.9,203.71,329.28]
[1756517779795,7.71,203.88,203.76,2.85851542]
[1756517779997,7.71,203.88,203.77,7.69]
[1756517780393,0.03166333,203.85,203.77,7.69]
[1756517787701,7.74166333,203.85,203.77,7.69]
[1756517788298,0.03166333,203.85,203.79,7.69]
[1756517788803,7.71,203.89,203.79,7.69]
[1756517789000,0.0328381,203.84,203.79,7.69]
[1756517789198,0.0328381,203.84,203.78,2.85851542]
[1756517789399,0.0328381,203.84,203.81,2.85851542]
[1756517789605,0.0328381,203.84,203.82,7.69]
[1756517789803,7.71,203.93,203.82,7.69]